Cogmind - Beta 13 @@@ ROGUE MODE // 2024.03.31 @ 21:47:00 Player: MasterLemons Result: Smashed by cave-in Performance ------------- Evolutions (2) 1000 Regions Visited (6) 1200 Robots Destroyed (85) 425 Value Destroyed (2248) 2248 Prototype IDs (3) 60 Alien Tech Used (0) 0 Bonus (304) 304 TOTAL SCORE: 5237 Bonus ------- High Alert Combat Kills 4 Aligned with FarCom 300 Cogmind --------- Core Integrity 0/550 Matter 267/300 Energy 86/100 System Corruption 15% Temperature Cool (0) Movement Core (350) Ox6 Location -8/Materials Parts ------- > --- POWER (1) -------- (None) > --- PROPULSION (3) --- Potential Leg Potential Leg > --- UTILITY (4) ------ Large Storage Unit > --- WEAPON (3) ------- (None) > --- INVENTORY (15) --- Flight Unit Cesium-ion Thruster Improved VTOL Module Heat Sink Heat Sink Improved Heat Sink Particle Charger System Shield Peak State ------------ > --- POWER ------------ Light Nuclear Core > --- PROPULSION ------- VSS Leg Potential Leg Potential Leg > --- UTILITY ---------- Improved Heat Sink Large Storage Unit Improved Utility Shielding Hacking Suite > --- WEAPON ----------- Pulse Rifle Pulse Rifle Scythe > --- INVENTORY -------- Improved Heat Sink Pulse Rifle Pulse Rifle Gauss Rifle [Rating: 46] Favorites ----------- Power Light Ion Engine Engine Light Ion Engine Power Core Light Nuclear Core Propulsion Light Treads Treads Light Treads Leg VSS Leg Hover Unit Improved Hover Unit Flight Unit Flight Unit Utility Hacking Suite Device Improved Heat Sink Storage Large Storage Unit Hackware Hacking Suite Protection Improved Utility Shielding Weapon Pulse Rifle Energy Gun Pulse Rifle Energy Cannon Particle Cannon Ballistic Gun Assault Rifle Launcher Grenade Launcher Slashing Weapon Scythe Build | -11 -10 -9 -9 -9 -8 -8 ------- Run | Yrd Mat Mat Min Exi Min Mat Slots Evolved 4 | . . 2 . . . 2 Power . | . . . . . . . Propulsion 1 | . . 1 . . . . Utility 2 | . . 1 . . . 1 Weapon 1 | . . . . . . 1 Parts Attached 81 | 7 15 48 3 2 1 5 Power 19 | 2 3 10 3 . 1 . Engine 18 | 2 3 10 3 . . . Core 1 | . . . . . 1 . Reactor . | . . . . . . . Propulsion 21 | 2 2 15 . 2 . . Treads 8 | 2 2 4 . . . . Leg 7 | . . 5 . 2 . . Wheel . | . . . . . . . Hover 4 | . . 4 . . . . Flight 2 | . . 2 . . . . Utility 14 | 1 2 10 . . . 1 Device 6 | . . 6 . . . . Storage 4 | 1 1 1 . . . 1 Processor . | . . . . . . . Hackware 3 | . 1 2 . . . . Protection 1 | . . 1 . . . . Artifact . | . . . . . . . Weapon 27 | 2 8 13 . . . 4 Energy Gun 7 | 1 1 3 . . . 2 Energy Cannon 1 | . . 1 . . . . Ballistic Gun 12 | 1 4 6 . . . 1 Ballistic Cannon . | . . . . . . . Launcher 5 | . 3 2 . . . . Special Weapon . | . . . . . . . Impact Weapon . | . . . . . . . Slashing Weapon 2 | . . 1 . . . 1 Piercing Weapon . | . . . . . . . Special Melee Weapon . | . . . . . . . Unidentified Prototypes 2 | . . 1 . 1 . . Parts Lost 29 | . 2 16 . . . 11 Power 4 | . . 3 . . . 1 Propulsion 7 | . 1 5 . . . 1 Utility 8 | . . 5 . . . 3 Weapon 10 | . 1 3 . . . 6 Highest Loss Streak 7 | . 1 3 . . . 7 To Critical Strikes . | . . . . . . . Average Slot Usage (%) 93 | . 95 87 100 100 100 85 Engine 10 | . 14 9 11 11 . . Treads 16 | . 27 13 . . . . Leg 9 | . . 5 33 33 33 23 Hover 1 | . . 4 . . . . Device 4 | . . 4 11 11 11 9 Storage 8 | . 14 6 . . . 8 Hackware 13 | . 10 17 11 11 11 9 Protection 3 | . . 1 11 11 11 8 Energy Gun 6 | . 1 2 22 22 22 13 Ballistic Gun 10 | . 16 10 . . . 1 Launcher 6 | . 9 7 . . . . Naked Turns . | . . . . . . . Heaviest Build 93 | 13 30 93 14 12 14 36 Greatest Support 72 | 40 40 60 24 72 72 72 Greatest Overweight (x) 6 | 1 1 6 . . . . Average Overweight (x) . | . . . . . . . Largest Inventory Capacity 25 | 8 15 25 5 5 5 15 Average Capacity 13 | 6 14 15 5 5 5 14 Most Carried 19 | 5 14 19 5 5 5 9 Average Carried 8 | 2 6 11 5 4 4 5 Final Capacity 15 | 8 15 5 5 5 5 15 Final Carried 14 | 1 14 5 5 5 5 8 Class Distribution -------------------- 74% | Mutant 23% | Hacker-Mutant Dominant Class ---------------- Mutant | -10/Materials Hacker-Mutant | -9/Materials Mutant | -9/Mines Mutant | -9/Exiles Mutant | -8/Mines Mutant | -8/Materials Resources | -11 -10 -9 -9 -9 -8 -8 ----------- Run | Yrd Mat Mat Min Exi Min Mat Matter Collected 1980 | 270 593 1012 30 . 40 35 Remotely 415 | . . 415 . . . . Salvage Created 2323 | . 662 1318 49 . 94 200 Parts 173 | . 47 101 9 . 5 11 Haulers Intercepted 2 | . 1 1 . . . . Recyclers Shooed 1 | . 1 . . . . . Parts Field Recycled . | . . . . . . . Retrieved Matter . | . . . . . . . Parts Self-Destructed . | . . . . . . . Prevented . | . . . . . . . Kills | -11 -10 -9 -9 -9 -8 -8 ------- Run | Yrd Mat Mat Min Exi Min Mat Combat Hostiles Destroyed 61 | . 17 30 4 . 4 6 Melee 3 | . . 3 . . . . Guns 33 | . 8 12 4 . 4 5 Cannons 7 | . . 7 . . . . AOE 17 | . 9 8 . . . . Classes Destroyed 12 | . 9 2 . . 1 . Worker 2 | . 1 1 . . . . Builder 1 | . 1 . . . . . Tunneler 2 | . 1 1 . . . . Hauler 2 | . 1 1 . . . . Recycler 3 | . 1 2 . . . . Mechanic 1 | . . 1 . . . . Operator 5 | . 3 2 . . . . Watcher 8 | . 3 5 . . . . Swarmer 16 | . 3 4 4 . 3 2 Grunt 33 | . 14 18 . . . 1 Sentry 11 | . . 8 . . . 3 Hunter 1 | . . . . . 1 . Best Kill Streak 5 | . 4 5 4 . 3 3 Combat Bots Only 4 | . 3 4 4 . 3 3 Max Kills in Single Turn 2 | . 2 2 2 . 1 1 Gunslinging 1 | . 1 . . . . . Exploded 2 | . 2 2 . . . . Melee 1 | . . 1 . . . . Uniques/NPCs Destroyed . | . . . . . . . Combat | -11 -10 -9 -9 -9 -8 -8 -------- Run | Yrd Mat Mat Min Exi Min Mat Hostile Shots Fired 480 | . 108 172 6 . 14 180 Missed 141 | . 34 47 1 . 5 54 Damage Taken 4664 | . 877 1678 43 . 103 1963 Core 1122 | . 199 341 . . . 582 Absorbed by Shields . | . . . . . . . Redirected to Shielding 74 | . . . . . . 74 Regen/Repaired (Parts) 141 | . 101 40 . . . . Core Remaining (%) 44 | 100 20 . . . 14 . Volleys Fired 217 | . 78 90 3 . 7 39 Largest 2 | . 2 2 2 . 2 2 Hottest 126 | . 70 126 126 . 126 126 Shots Fired 389 | . 147 167 6 1 14 54 Gun 324 | . 126 123 6 1 14 54 Cannon 16 | . . 16 . . . . Launcher 49 | . 21 28 . . . . Special . | . . . . . . . Kinetic 228 | . 111 105 . . . 12 Thermal 112 | . 15 34 6 1 14 42 Explosive 49 | . 21 28 . . . . Electromagnetic . | . . . . . . . Robot Hit Streak 9 | . 8 9 4 . 3 7 Robot Miss Streak 4 | . 4 4 1 . 3 2 Penetration Max 1 | . . . . . . 1 Secondary Targets 4 | . 2 . 1 . . 1 Max Gunslinging Chain 1 | . 1 . 1 . . 1 Shots Hit Robots 223 | . 80 102 4 . 6 31 Core Hits 130 | . 46 66 4 . 5 9 Critical Kills . | . . . . . . . Critical Parts Destroyed 2 | . 1 1 . . . . Critical Strikes 5 | . 2 2 . . . 1 Burn 2 | . 1 . . . . 1 Destroy 2 | . 1 1 . . . . Sever 1 | . . 1 . . . . Melee Attacks 19 | . . 10 . . . 9 Impact . | . . . . . . . Slashing 19 | . . 10 . . . 9 Piercing . | . . . . . . . Sneak Attacks 1 | . . 1 . . . . Combat Hostiles . | . . . . . . . Follow-up Attacks . | . . . . . . . Damage Inflicted 5243 | . 2092 2359 84 . 118 590 Guns 2802 | . 956 1093 84 . 118 551 Cannons 182 | . . 182 . . . . Explosions 1910 | . 1118 792 . . . . Melee 281 | . . 281 . . . . Ramming 68 | . 18 11 . . . 39 Kinetic 1756 | . 793 869 . . . 94 Thermal 1485 | . 287 539 84 . 118 457 Explosive 1653 | . 994 659 . . . . Electromagnetic . | . . . . . . . Impact . | . . . . . . . Slashing 281 | . . 281 . . . . Piercing . | . . . . . . . Highest Corruption 9 | . 3 1 1 1 1 9 Average Corruption 1 | . 2 1 1 1 1 6 Corruption Purged . | . . . . . . . Corruption Blocked . | . . . . . . . Effects 23 | . 12 5 2 3 1 . Message Errors 7 | . 2 3 2 . . . Matter Fused 4 | . 3 . . 1 . . Heat Flow Errors 2 | . 1 . . 1 . . Energy Discharges 2 | . 2 . . . . . Data Loss (minor) 3 | . 1 2 . . . . Data Loss (major) 2 | . 1 . . . 1 . Misfires 2 | . 1 . . 1 . . Alerts 1 | . 1 . . . . . Overload Shots . | . . . . . . . Overflow Damage 159 | . 130 29 . . . . Projectiles . | . . . . . . . Explosions 159 | . 130 29 . . . . Melee . | . . . . . . . Knockbacks . | . . . . . . . Impact . | . . . . . . . Kinetic . | . . . . . . . Secondary . | . . . . . . . Self-Inflicted Damage 321 | . 36 246 . . . 39 Shots 11 | . 2 9 . . . . Rammed 7 | . 3 4 . . . . Targets Rammed 7 | . 3 4 . . . . Kicked . | . . . . . . . Crushed . | . . . . . . . Highest Temperature 280 | . 132 280 45 212 105 102 Average Temperature 43 | . 33 52 23 113 44 29 Received Heat Transfer 1437 | . 459 654 . . . 324 Siege Activations . | . . . . . . . Robots Corrupted . | . . . . . . . Combat Hostiles . | . . . . . . . Parts Fried . | . . . . . . . Impact Corruptions . | . . . . . . . Robots Melted 1 | . . . . . . 1 Combat Hostiles 1 | . . . . . . 1 Parts Melted 7 | . 1 1 . . 1 4 Heat Transferred 3086 | . 655 914 185 . 259 1073 Parts Sabotaged . | . . . . . . . Parts Stolen . | . . . . . . . Parts Stripped . | . . . . . . . Power Chain Reactions . | . . . . . . . Alert | -11 -10 -9 -9 -9 -8 -8 ------- Run | Yrd Mat Mat Min Exi Min Mat Peak Influence 452 | . 335 452 230 . 115 239 Initial 140 | . . 79 140 . . 44 Average 200 | . 207 219 227 . 71 113 Maximum Alert Level 2 | . 1 2 1 . . 1 Low Security (%) 44 | 100 41 37 4 . 100 89 Level 1 54 | . 58 60 95 . . 10 Level 2 . | . . 1 . . . . Level 3 . | . . . . . . . Level 4 . | . . . . . . . Level 5 . | . . . . . . . High Security . | . . . . . . . Max Security . | . . . . . . . Squads Dispatched 14 | . 5 9 . . . . Investigation 9 | . 2 7 . . . . Extermination . | . . . . . . . Reinforcement 5 | . 3 2 . . . . Assault . | . . . . . . . Garrison . | . . . . . . . Intercept . | . . . . . . . Searches Triggered . | . . . . . . . Construction Impeded 1 | . . 1 . . . . Haulers Reinforced . | . . . . . . . Active Scanning Responses . | . . . . . . . Cargo Convoy Interrupts . | . . . . . . . Stealth | -11 -10 -9 -9 -9 -8 -8 --------- Run | Yrd Mat Mat Min Exi Min Mat Distress Signals 3 | . 1 2 . . . . Communications Jammed . | . . . . . . . Distress Signals . | . . . . . . . Times Spotted 86 | . 28 39 2 . 5 12 Peak Tracking Total 8 | . 5 4 2 . 4 8 Tactical Retreats 4 | . . 2 . . . 2 Traps | -11 -10 -9 -9 -9 -8 -8 ------- Run | Yrd Mat Mat Min Exi Min Mat Traps Triggered 2 | . 2 . . . . . Indirectly . | . . . . . . . Trap Hack Attempts . | . . . . . . . Triggered . | . . . . . . . Disarmed . | . . . . . . . Reprogrammed 6 | . . 6 . . . . Reused 1 | . . 1 . . . . Traps Extracted . | . . . . . . . Installed . | . . . . . . . Triggered 1 | . . 1 . . . . Machines | -11 -10 -9 -9 -9 -8 -8 ---------- Run | Yrd Mat Mat Min Exi Min Mat Machines Disabled 12 | . 5 6 . . . 1 Max in Single Turn 3 | . 2 3 . . . 1 Machines Repaired . | . . . . . . . Machines Dismantled . | . . . . . . . Machines Sabotaged . | . . . . . . . Overloaded Fab Kills . | . . . . . . . Hacking | -11 -10 -9 -9 -9 -8 -8 --------- Run | Yrd Mat Mat Min Exi Min Mat Machines Accessed 23 | . 8 11 . 4 . . Terminals 12 | . 5 7 . . . . Fabricators . | . . . . . . . Repair Stations 3 | . 1 2 . . . . Recycling Units 3 | . 2 1 . . . . Scanalyzers 1 | . . 1 . . . . Garrison Access . | . . . . . . . Total Hacks 121 | . 25 47 . 49 . . Successful 84 | . 11 24 . 49 . . Failed 37 | . 14 23 . . . . Catastrophic . | . . . . . . . Database Lockouts . | . . . . . . . Manual 3 | . . . . 3 . . Terminals 43 | . 15 28 . . . . Fabricators . | . . . . . . . Repair Stations 12 | . 4 8 . . . . Recycling Units 9 | . 6 3 . . . . Scanalyzers 8 | . . 8 . . . . Garrison Access . | . . . . . . . Terminal Hacks 68 | . 7 12 . 49 . . Record 53 | . 1 3 . 49 . . Prototype ID Bank 1 | . . 1 . . . . Branch Access Points 1 | . 1 . . . . . Emergency Access Points 1 | . . 1 . . . . Alert Level 1 | . 1 . . . . . Unreport Threat 3 | . . 3 . . . . Reprogram Traps 1 | . . 1 . . . . Recall Reinforcements 1 | . . 1 . . . . Recall Assault 1 | . 1 . . . . . Hauler Manifests 2 | . 1 1 . . . . Zone Layout 3 | . 2 1 . . . . Fabricator Hacks . | . . . . . . . Repair Station Hacks 5 | . 2 3 . . . . Scan Component 3 | . 1 2 . . . . Repair 2 | . 1 1 . . . . Recycling Unit Hacks 4 | . 2 2 . . . . Retrieve Matter 2 | . 1 1 . . . . Retrieve Components 2 | . 1 1 . . . . Scanalyzer 7 | . . 7 . . . . Insert Component 3 | . . 3 . . . . Analyze 4 | . . 4 . . . . Garrison Access Hacks . | . . . . . . . Unauthorized Hacks . | . . . . . . . Terminals . | . . . . . . . Fabricators . | . . . . . . . Repair Stations . | . . . . . . . Recycling Units . | . . . . . . . Scanalyzers . | . . . . . . . Garrison Access . | . . . . . . . Data Cores Recovered 1 | . . 1 . . . . Used . | . . . . . . . Hacking Detections 16 | . 5 11 . . . . Full Trace Events 14 | . 4 10 . . . . Feedback Events 1 | . . 1 . . . . Corruption 1 | . . 1 . . . . Feedback Blocked . | . . . . . . . Robot Schematics Acquired . | . . . . . . . Robots Built . | . . . . . . . Authchips . | . . . . . . . Time . | . . . . . . . Total Robot Build Rating . | . . . . . . . Part Schematics Acquired 2 | . . 2 . . . . Parts Built . | . . . . . . . Authchips . | . . . . . . . Time . | . . . . . . . Total Part Build Rating . | . . . . . . . Parts Repaired 2 | . 1 1 . . . . Time 64 | . 26 38 . . . . Parts Recycled . | . . . . . . . Recycled Matter . | . . . . . . . Retrieved Matter 176 | . 176 . . . . . Retrieved Components 2 | . . 2 . . . . Parts Scanalyzed 3 | . . 3 . . . . Part Schematics Acquired 2 | . . 2 . . . . Parts Damaged 1 | . . 1 . . . . Bothacking | -11 -10 -9 -9 -9 -8 -8 ------------ Run | Yrd Mat Mat Min Exi Min Mat Used RIF Installer . | . . . . . . . Robots Hacked . | . . . . . . . Non-combat . | . . . . . . . Combat . | . . . . . . . Robot Hacks Applied . | . . . . . . . Relay Couplers Released . | . . . . . . . Fabnet Peak Effective % . | . . . . . . . Robots Rewired . | . . . . . . . Allies Hacked . | . . . . . . . Hacks Repelled . | . . . . . . . Allies | -11 -10 -9 -9 -9 -8 -8 -------- Run | Yrd Mat Mat Min Exi Min Mat Total Allies . | . . . . . . . Largest Group . | . . . . . . . Highest-Rated Group . | . . . . . . . Highest-Rated Ally . | . . . . . . . Total Orders . | . . . . . . . Ally Attacks . | . . . . . . . Total Damage . | . . . . . . . Kills . | . . . . . . . Allies Corrupted . | . . . . . . . Allies Melted . | . . . . . . . Intel | -11 -10 -9 -9 -9 -8 -8 ------- Run | Yrd Mat Mat Min Exi Min Mat Robot Analysis Total . | . . . . . . . Derelict Logs Recovered . | . . . . . . . Drone Launches . | . . . . . . . Drone Recoveries . | . . . . . . . Exploration | -11 -10 -9 -9 -9 -8 -8 ------------- Run | Yrd Mat Mat Min Exi Min Mat Turns Passed 5588 | 61 2272 1950 74 828 142 261 Spaces Moved 3366 | 42 1193 899 67 909 131 125 Core 62 | 19 . 43 . . . . Treads 1587 | 23 1193 371 . . . . Legs 1451 | . . 219 67 909 131 125 Wheels . | . . . . . . . Hover 223 | . . 223 . . . . Flight 43 | . . 43 . . . . Fastest Speed 50 | 50 160 52 90 90 90 90 Average Speed 135 | 112 162 161 90 90 90 90 Slowest Speed 480 | 160 240 480 90 90 90 90 Overloaded Moves . | . . . . . . . Propulsion Burnouts . | . . . . . . . Robots Hopped . | . . . . . . . Cave-ins Triggered 2 | . . . . . . 2 Exploration Rate (%) 46 | 3 98 77 19 93 31 7 Regions Visited 6 Branch Regions 3 Pre-discovered Areas 1 | . . . . 1 . . Known Exits Taken . | . . . . . . . Unknown Exits Taken 6 | 1 1 1 1 1 1 . Scrap Searched . | . . . . . . . Spaces Dug 8 | . . . . . . 8 Terrain Destroyed 318 | . 141 169 . . . 8 Melee 8 | . . . . . . 8 Projectile . | . . . . . . . AOE 310 | . 141 169 . . . . Terrain Rammed 5 | . . . . . . 5 Walls Destroyed . | . . . . . . . Machines Disabled . | . . . . . . . Actions | -11 -10 -9 -9 -9 -8 -8 --------- Run | Yrd Mat Mat Min Exi Min Mat Total 4002 | 54 1378 1230 75 919 141 205 Wait 184 | . 55 115 . . . 14 Move 3360 | 41 1192 898 66 908 130 125 Hop . | . . . . . . . Pick Up 79 | 5 26 35 . 4 1 8 Fast Attach 14 | 3 . 10 1 . . . Attach 35 | 3 7 20 . . . 5 Detach . | . . . . . . . Swap 32 | 1 8 18 2 2 1 . Drop 49 | 1 9 30 3 4 2 . Fire 217 | . 78 90 3 . 7 39 Melee 19 | . . 10 . . . 9 Ram 6 | . . 1 . . . 5 Kick . | . . . . . . . Crush 6 | . 3 3 . . . . Escape Stasis . | . . . . . . . Rewire 1 | . . . . 1 . . Trap . | . . . . . . . Miscellaneous . | . . . . . . . Route ------- -11/Scrapyard -10/Materials (discovered 4 exits: *Mat x3 / *Min) -9/Materials (discovered 3 exits: [*Mat x2] / [*Min]) -9/Mines -9/Exiles (discovered 2 exits: [*Min x2]) -8/Mines -8/Materials History --------- Turn | Location | Event 6 | -11/Scrapyard | Discovered new exit (range 14) 62 | -11/Scrapyard | Entered Materials 294 | -10/Materials | Identified exit to Mines 305 | -10/Materials | Build established: Mutant 466 | -10/Materials | Discovered new exit (range 16) 521 | -10/Materials | Core integrity fell below 50% 896 | -10/Materials | Repaired Lgt. Treads? 1056 | -10/Materials | Discovered new exit (range 16) 1550 | -10/Materials | Discovered new exit (range 11) 2334 | -10/Materials | Entered another Materials area 2334 | -9/Materials | Evolved 2 slots: Propulsion x1, Utility x1 2735 | -9/Materials | Build established: Hacker-Mutant 2988 | -9/Materials | Discovered new exit (range 9) 3224 | -9/Materials | Lost 3 parts (1p1n1w) 3516 | -9/Materials | Discovered new exit (range 15) 3616 | -9/Materials | Core integrity fell below 50% 3930 | -9/Materials | Core integrity fell below 20% 3968 | -9/Materials | Lost 3 parts (1p2u) 4246 | -9/Materials | Repaired Pulse Rifle 4258 | -9/Materials | Discovered new exit (range 15) 4284 | -9/Materials | Entered Mines 4288 | -9/Mines | Build established: Mutant 4353 | -9/Mines | Deemed a non-threat by the Exiles lab entrance 4354 | -9/Mines | Discovered new exit (range 5) 4358 | -9/Mines | Entered Exiles 4382 | -9/Exiles | Discovered new exit (range 14) 4394 | -9/Exiles | Met 8R-AWN 4409 | -9/Exiles | Met EX-HEX 4442 | -9/Exiles | Met EX-DEC 4467 | -9/Exiles | Learned location of Zion (-7) 4493 | -9/Exiles | Discovered new exit (range 12) 4554 | -9/Exiles | Met EX-BIN 4573 | -9/Exiles | Aligned with FarCom system 4574 | -9/Exiles | Given EX-Vault access code 4893 | -9/Exiles | Visited The Gauntlet 5080 | -9/Exiles | Opened EX-Vault 5087 | -9/Exiles | Found Prototype Leg 5088 | -9/Exiles | Identified Potential Leg 5093 | -9/Exiles | Found Potential Leg 5120 | -9/Exiles | Warned to stay clear of 0b10 Research branches 5186 | -9/Exiles | Left Exiles lab with Potential Leg 5186 | -9/Exiles | Entered Mines 5313 | -8/Mines | Discovered new exit (range 10) 5328 | -8/Mines | Entered Materials 5328 | -8/Materials | Evolved 2 slots: Utility x1, Weapon x1 5521 | -8/Materials | Lost 4 parts (1p1n2w) 5552 | -8/Materials | Core integrity fell below 50% 5578 | -8/Materials | Crushed by falling debris 5578 | -8/Materials | Core integrity fell below 20% 5590 | -8/Materials | Crushed by falling debris 5590 | -8/Materials | Smashed by cave-in Last Messages --------------- 05572_ Slug penetrates G-47 Trooper. 05572_ G-47 Trooper destroyed. 05573_ U-05 Engineer builds a Wall. 05578_ The unstable cave ceiling collapses. 05578_ Crushed by falling debris. 05578_ Imp. Utility Shielding destroyed. 05578_ System corrupted by crushing effect (+2). 05578_ Pulse Rifle destroyed. 05578_ System corrupted by crushing effect (+2). 05578_ Acquired Flight Unit. 05579_ Slug penetrates Wall. 05590_ The unstable cave ceiling collapses. 05590_ Crushed by falling debris. 05590_ Hacking Suite destroyed. 05590_ System corrupted by crushing effect (+4). 05590_ Gauss Rifle destroyed. 05590_ System corrupted by crushing effect (+1). 05590_ Imp. Heat Sink destroyed. 05590_ System corrupted by crushing effect (+1). [Achievement: 5k Club] Map ----- +----------------------------------------------------+ | ????????????????????????????????????????? | | ????????????????????????????????????????? | | ????????????????????????????????????????? | | ????????????????????????????????????????? | | ????????????????????????????????????????? | | ????????????????????????????????????????? | | ????????????????????????????????????????? | | ????????????????????????????????????????? | | ????????????????????????????????????????? | | ????????????????????????????????????????? | | ????????????????????????????????????????? | | ????????????????????????????????????????? | | ????????????????????????????????????????? | | ????????????????????????????????????????? | | ????????????????????????????????????????? | | ????????????????????????????????????????? | | ??????????????????????????? ??????????? | | ??????????????????????????? #?????????? | | ??????????????????????????? #?????????? | | ??????????????????????????? #?????????? | | ?????????????????Y????????? #?????????? | | ??????????????????????????? #?????????? | | ??????????????????????????? #?????????? | | ??????????????????????????# #?????????? | | ????????????????????????### #?????????? | | ????????????????????????#@# #?????????? | | ???????????????????######## #?????????? | | ???????????????????# [%g# #?????????? | | ???????????????????# """=%# #?????????? | | ???????????????????# """*[# #?????????? | | ???????????????????# "" ==+ +?????????? | | ???????????????????# "" h # #?????????? | | ???????????????????# # #?????????? | | ?????????? ! ############## #?????????? | | ????????? #?????????? | | ????????? ! #?????????? | | ????????? #?????????? | | ???????????? ##########+### #?????????? | | ???????????????????# % # #?????????? | | ???????????????????# # #?????????? | | ???????????????????# # ########??? | | ???????????????????# "Y" # #] #??? | | ???????????????????# %"" # # #??? | | ???????????????????# # # """ #??? | | ???????????????????##%##### + """ #??? | | ????????????????????#### # # """ #??? | | ???????????????????????#### # #??? | | ????????????????????????# # ########??? | | ???????????????????????#### #?????? | | ??????????????????????##! #?????? | +----------------------------------------------------+ Best States ------------- Heat Dissipation 45 Energy Generation 14 Energy Capacity 265 Matter Stores 300 Matter Capacity 300 Sight Range 16 Terrain Scan Density 10 Utility Shielding 66 Evasion (%) 57 Recoil Reduction 3 Particle Charging 22 Offensive Hacking 20 Item Schematics ----------------- Ion Engine | -9/Materials | Scanalyzed Particle Charger | -9/Materials | Scanalyzed Robot Schematics ------------------ None Fabricated ------------ Nothing Alien Tech Used ----------------- None Achievements -------------- 5k Club It's Just You Please Form A Line Tourist Challenges ------------ None Game ------ Seed GatlingSeismicCorpse Manual? 0 Play Time 01:09:44 Cumulative 3.5 hours Start 2024.03.31 @ 20:34:34 End 2024.03.31 @ 21:47:00 Sessions 1 Manual Loads 0 Difficulty Rogue Special Mode None Game No. 11 Rogue 8 Adventurer 3 Explorer 0 Win Type - Total 0 Types 0/0/0/0/0/0/0/0/0 Lore% 11 Gallery% 6 Achievement% 10 Wizard Run 0 Options --------- Layout 1 ASCII 0 Keyboard 0 Movement Mouse Keybinds 0 Fullscreen 1 Font 32/SmallcapsGlow Map View 77x35 Zoom Use 0% Tactical HUD 1 Map Filters NONE Filters NONE Steam 1 RUN: 9fa77ab3-0bc7-4b64-8da5-98e39b585a3f